bitfinex-derivatives/quotes_ETHF0:USTF0_20260209
["timestamp","ask_amount","ask_price","bid_price","bid_amount"]
[1770634144659,0.59566255,2019.4,2018.6,0.03815738]
[1770634145063,0.5996781,2019.4,2018.6,0.03815738]
[1770634145264,0.5996781,2019.4,2018.6,0.03981685]
[1770634145469,0.59566255,2019.4,2018.6,0.03981685]
[1770634145768,0.00559437,2019.4,2018.6,0.03981685]
[1770634145962,0.59566255,2019.4,2018.5,0.24795]
[1770634146567,0.59566255,2019.4,2018.6,0.03981685]
[1770634146770,0.00559437,2019.4,2018.8,0.03981685]
[1770634147971,2.95197384,2020.1,2018.7,0.24792]
[1770634147972,0.59006818,2020.4,2019.2,0.03412217]
[1770634148264,0.59006818,2020.2,2019.1,0.24787]
[1770634148577,0.59006818,2020.0,2019.2,0.03412217]
[1770634149066,0.59006818,2019.6,2019.2,0.00406304]
[1770634149272,0.59006818,2019.6,2018.8,0.03412217]
[1770634149475,0.59006818,2019.2,2018.3,0.24797]
[1770634149671,0.59006818,2019.2,2018.4,0.02948588]
[1770634150165,0.59006818,2019.2,2018.4,0.00606964]
[1770634150468,0.59006818,2019.4,2018.8,0.02948588]
[1770634150773,0.59006818,2019.4,2018.7,0.24792]
[1770634151066,0.59006818,2019.2,2018.7,0.27724439]
[1770634151268,0.59006818,2019.2,2018.7,0.24792]
[1770634151467,0.59006818,2019.4,2018.7,0.27724439]
[1770634151771,0.59408373,2019.4,2018.7,0.24792]
[1770634152372,0.59006818,2019.4,2018.8,0.02932439]
[1770634152772,32.051,2019.5,2018.8,0.02932439]
[1770634153775,0.59006818,2019.6,2018.8,0.02932439]
[1770634153971,0.59006818,2019.6,2019.0,0.03086876]
[1770634154575,0.59006818,2019.9,2019.0,0.03086876]
[1770634154871,0.00435808,2020.0,2019.4,0.03086876]
[1770634155072,0.00029504,2020.0,2019.6,0.03086876]
[1770634155272,0.00029504,2020.0,2019.6,0.0315665]
[1770634155569,0.00029504,2020.0,2019.5,0.2793865]
[1770634155769,0.00029504,2020.0,2019.6,0.0315665]
[1770634155976,40.8,2020.7,2019.6,0.0315665]
[1770634155977,0.57845886,2020.7,2019.6,0.0315665]
[1770634156170,0.58276945,2020.7,2019.6,0.0315665]
[1770634157077,0.58887314,2020.7,2019.6,0.0315665]
[1770634157278,0.58456255,2020.7,2019.6,0.0315665]
[1770634157673,0.58887314,2020.7,2019.7,6.34377]
[1770634157979,0.58456255,2020.7,2019.8,0.03019706]
[1770634158171,0.5791426,2020.5,2019.7,0.2478]
[1770634158480,0.5791426,2020.5,2019.7,0.27793616]
[1770634158877,0.5791426,2020.5,2019.7,0.2478]
[1770634159078,0.5791426,2020.3,2019.7,0.2478]
[1770634159581,0.58345319,2020.3,2019.7,0.2478]
[1770634160376,0.59268551,2020.0,2019.2,0.00305033]
[1770634160778,2.95197384,2020.6,2019.3,0.24785]
[1770634160779,0.59268551,2020.5,2019.3,0.24785]
[1770634160974,0.59268551,2020.2,2019.3,0.24785]
[1770634161477,0.59270474,2019.8,2019.0,0.00305033]
[1770634161680,0.59270474,2019.8,2018.8,0.25092187]
[1770634162385,0.59270474,2019.6,2018.8,0.24791]
[1770634162579,0.59270474,2020.2,2018.9,0.00301187]
[1770634162776,0.59270474,2020.2,2019.1,0.00301187]
[1770634162976,0.59701533,2020.2,2019.1,0.00301187]
[1770634163482,0.60082539,2019.8,2019.0,0.24789]
[1770634163680,0.60082539,2019.8,2018.4,0.25401964]
[1770634163880,0.60082539,2019.7,2018.4,0.25401964]
[1770634164083,0.60513598,2019.7,2018.6,0.24793]
[1770634164682,0.60082539,2019.7,2018.8,0.24791]
[1770634164883,0.60082539,2020.2,2018.8,6.34657]
[1770634165079,0.60082539,2020.2,2019.0,0.24789]
[1770634165273,40.8,2020.1,2019.0,0.24789]
[1770634165477,0.60085994,2020.0,2019.0,0.24789]
[1770634166392,0.60085994,2020.3,2019.2,6.34533]
[1770634166782,0.60085994,2020.3,2019.4,0.24784]
[1770634166977,0.60517053,2020.3,2019.4,0.24784]
[1770634167584,0.60517053,2020.3,2019.4,6.34468]
[1770634168085,0.60517053,2020.3,2019.4,0.24784]
[1770634168584,0.60226037,2020.5,2019.6,6.34398]
[1770634168981,0.60657096,2020.5,2019.7,6.3337878]
[1770634169188,0.60657096,2020.5,2019.6,6.34398]
[1770634169387,0.60657096,2020.5,2019.6,0.24781]
[1770634170789,0.00431059,2020.3,2019.6,0.24781]
[1770634171090,0.60798579,2020.3,2019.6,0.24781]
[1770634171295,0.00431059,2020.3,2019.6,0.24781]
[1770634171895,0.60796741,2020.3,2019.6,0.24781]
[1770634172296,0.60365682,2019.9,2019.6,0.24781]
[1770634172500,0.60365682,2020.0,2019.2,2.96098517]
[1770634172799,0.60796741,2019.7,2019.0,3.20886517]
[1770634173001,0.60365682,2019.7,2019.0,3.20886517]
[1770634173295,0.60796741,2019.7,2019.0,3.20886517]
[1770634173691,0.60372138,2020.1,2019.0,9.30693517]
[1770634173898,0.60372138,2020.1,2019.2,0.24786]
[1770634174097,0.60372138,2020.0,2019.2,0.24786]
[1770634174292,0.60372138,2019.6,2019.2,0.24786]
[1770634174797,0.60372138,2020.1,2019.2,6.34514]
[1770634175095,3.79410369,2020.7,2019.4,6.34471]
[1770634175096,0.60378254,2020.6,2019.4,6.34471]
[1770634175297,0.60378254,2020.6,2019.6,2.96098517]
[1770634175498,0.56618034,2019.3,2018.8,0.55242771]
[1770634175797,0.56618034,2019.1,2018.2,0.55242771]
[1770634176493,0.00431059,2018.6,2018.2,0.55242771]
[1770634176794,0.57049093,2018.6,2018.2,0.0060957]
[1770634176992,0.00431059,2018.3,2018.2,0.0060957]
[1770634177197,0.00431059,2018.3,2018.0,0.55242771]
[1770634178096,0.57257543,2018.6,2018.0,0.55242771]
[1770634178097,0.57257543,2018.6,2018.0,0.55706679]
[1770634178506,0.57257543,2018.6,2017.6,0.55242771]
[1770634178801,0.56618034,2018.5,2017.4,0.55242771]
[1770634179591,0.56618034,2018.5,2017.6,0.55242771]
[1770634180991,0.56618034,2018.2,2017.4,0.00520584]
[1770634182094,0.56618034,2018.2,2017.0,0.55242771]
[1770634182999,0.56618034,2018.0,2017.0,0.55242771]
[1770634183197,40.8,2018.1,2017.0,0.55667357]
[1770634183501,0.56514908,2018.2,2017.2,0.55242771]
[1770634185102,0.56141745,2018.4,2017.2,0.55242771]
[1770634185298,0.56701017,2018.6,2017.6,0.53664011]
[1770634185697,0.00639509,2018.6,2017.6,0.53664011]
[1770634185897,0.00639509,2018.6,2017.8,0.53664011]
[1770634186601,0.00639509,2018.6,2018.0,0.53664011]
[1770634186801,0.56057547,2018.9,2017.9,12.1984299]
[1770634186998,0.56057547,2018.9,2018.0,0.53664011]
[1770634187597,0.54651603,2018.8,2018.0,0.53664011]
[1770634187798,0.55284038,2018.8,2018.0,0.53664011]
[1770634187997,0.55284038,2018.8,2017.1,0.53664011]
[1770634187998,0.54651603,2018.2,2017.1,0.53664011]
[1770634190202,0.56603249,2017.9,2017.0,0.00424586]
[1770634191000,0.56603249,2017.9,2017.0,0.54088597]
[1770634192096,0.56570559,2017.5,2016.7,0.53664011]
[1770634192595,0.56570559,2017.5,2016.2,0.24822]
[1770634192596,0.56570559,2017.5,2015.7,0.62287916]
[1770634192805,0.56570559,2017.0,2015.7,0.53664011]
[1770634193002,41.36570559,2016.9,2015.7,0.53664011]
[1770634193203,0.56725887,2016.8,2015.7,0.5410938]
[1770634194305,0.56725887,2016.8,2015.3,0.81958888]
[1770634194505,0.56725887,2016.8,2014.8,0.2484]
[1770634194506,0.56725887,2016.5,2014.9,0.53664011]
[1770634195303,0.56725887,2016.5,2014.9,0.5413872]
[1770634195509,0.56725887,2016.5,2015.1,0.53664011]
[1770634196407,0.56725887,2016.5,2015.3,0.53664011]
[1770634198711,0.5489584,2016.3,2015.3,0.53664011]
[1770634200808,0.53793504,2016.7,2015.4,6.38198351]
[1770634201009,0.53793504,2016.7,2015.5,0.53664011]
[1770634203502,0.00436512,2016.9,2015.5,0.53664011]
[1770634203503,0.00436512,2016.9,2015.6,0.2483]
[1770634203708,0.00436512,2016.9,2015.7,0.53664011]
[1770634203908,0.00436512,2016.9,2015.9,0.53664011]
[1770634203909,0.49802094,2016.9,2015.9,0.53664011]
[1770634204304,0.49802094,2016.9,2016.1,0.53664011]
[1770634204305,0.00436512,2016.9,2016.1,0.53664011]
[1770634204509,0.49365582,2017.3,2016.3,0.53664011]
[1770634204710,35.542,2017.8,2016.3,0.53664011]
[1770634204711,0.49802094,2017.5,2016.3,0.53664011]
[1770634205014,32.07,2017.8,2016.7,0.53664011]
[1770634205214,0.49802094,2018.0,2016.7,0.53664011]
[1770634205615,0.50289107,2018.0,2016.7,0.54144834]
[1770634205912,0.50289107,2018.0,2016.9,0.53664011]
[1770634207615,0.00487013,2018.0,2016.9,0.53664011]
[1770634207812,41.27036702,2018.5,2017.3,0.53664011]
[1770634208008,0.47036702,2018.4,2017.3,0.53664011]
[1770634208208,40.8,2018.5,2017.3,0.53664011]
[1770634208613,40.8,2018.5,2017.2,0.24811]
[1770634208614,0.47036702,2018.6,2017.5,0.53664011]
[1770634208811,0.47514249,2018.6,2017.5,0.53664011]
[1770634209216,0.00477547,2018.6,2017.7,0.53664011]
[1770634210313,0.47548382,2018.6,2017.7,0.53664011]
[1770634210513,0.00477547,2018.6,2017.7,0.53664011]
[1770634211511,0.00477547,2018.6,2017.9,0.53664011]
[1770634211713,0.47482299,2018.6,2017.8,0.53664011]
[1770634212416,0.00477547,2018.6,2017.8,0.53664011]
[1770634212617,0.47482299,2019.1,2018.0,0.53664011]
[1770634213125,0.47482299,2019.1,2017.8,12.00135493]
[1770634213418,0.47871329,2018.9,2017.7,0.53664011]
[1770634213621,0.48255093,2018.9,2017.7,0.53664011]
[1770634217621,0.24791,2018.8,2017.4,0.58895121]
[1770634217827,0.4715408,2018.7,2017.4,0.58895121]
[1770634221226,0.46908276,2018.5,2017.2,0.54321682]
[1770634221434,0.46908276,2018.1,2017.0,0.54321682]
[1770634221633,0.46908276,2017.9,2016.8,0.54321682]
[1770634221932,0.46908276,2017.7,2016.8,0.54321682]
[1770634223929,0.5256545,2017.7,2016.8,0.54321682]
[1770634224931,0.5256545,2017.7,2016.6,0.54321682]
[1770634225134,0.5256545,2017.7,2016.7,0.54802505]
[1770634226236,0.52736223,2017.5,2016.3,0.54321682]
[1770634227135,0.52736223,2017.3,2015.8,0.54321682]
[1770634227435,0.53338351,2017.3,2015.9,0.54321682]
[1770634227632,0.00602128,2017.3,2016.1,0.54321682]
[1770634227827,0.5302851,2017.3,2016.3,0.54321682]
[1770634228834,0.00602128,2017.3,2016.5,0.54321682]
[1770634229023,0.52426382,2017.8,2016.7,0.54321682]
[1770634230031,0.5300663,2017.8,2016.7,0.54321682]
[1770634230431,0.00580248,2017.8,2016.8,6.5330412]
[1770634230631,0.00580248,2017.8,2016.9,0.54321682]
[1770634231032,0.00580248,2017.8,2016.6,6.35343]
[1770634231033,0.00580248,2017.8,2017.1,0.54321682]
[1770634231729,41.32209099,2018.3,2017.3,0.54321682]
[1770634231934,0.52804407,2018.5,2017.3,0.54321682]
[1770634232129,42.99636845,2018.7,2017.6,0.24806]
[1770634232130,3.42101052,2018.7,2017.6,0.24806]
[1770634232330,32.58904407,2018.9,2017.8,0.24803]
[1770634232533,32.58904407,2018.9,2017.9,0.54321682]
[1770634232732,0.00381275,2018.9,2018.1,0.54321682]
[1770634233335,0.52708627,2019.4,2018.2,6.44490491]
[1770634233533,0.53089902,2019.1,2018.3,0.54321682]
[1770634233834,0.53089902,2018.9,2017.9,0.54863318]
[1770634234236,0.53089902,2018.7,2017.9,0.54863318]
[1770634235532,0.52360473,2018.6,2017.9,0.54863318]
[1770634235728,2.89858407,2018.9,2017.9,0.54863318]
[1770634236133,7.31585572,2018.9,2017.9,0.54863318]
[1770634236335,7.83946045,2018.9,2017.9,0.54863318]
[1770634236539,4.41727165,2018.8,2017.9,0.54863318]
[1770634236739,0.52922235,2018.9,2017.9,0.54863318]
[1770634236936,4.41635741,2018.8,2017.9,0.54863318]
[1770634237138,0.52922235,2018.9,2017.9,0.54863318]
[1770634237438,72.861,2019.6,2018.2,0.54321682]
[1770634237439,76.28055734,2019.6,2018.2,0.54321682]
[1770634237737,0.53220851,2019.4,2018.4,0.54321682]
[1770634238233,2.2987256,2019.6,2018.4,0.54321682]
[1770634238432,15.0,2020.2,2019.3,0.24784]
[1770634238629,15.59424085,2020.2,2019.3,0.24784]
[1770634238830,0.59424085,2020.5,2019.5,0.24782]
[1770634239046,0.59424085,2020.8,2019.7,6.09595]
[1770634239237,15.59424085,2020.8,2019.8,0.24778]
[1770634239438,15.59780398,2020.8,2019.8,6.6895039]
[1770634239639,15.59780398,2020.8,2019.8,0.2521611]
[1770634240042,0.00356313,2020.8,2020.0,6.34281]
[1770634240237,15.00356313,2020.8,2020.0,0.24776]
[1770634240434,15.59820833,2020.8,2020.0,0.24776]
[1770634241031,15.00356313,2020.8,2020.1,0.0768441]
[1770634241239,15.55938192,2020.8,2020.1,0.0768441]
[1770634241542,0.55581879,2020.7,2020.0,0.24776]
[1770634242345,15.0,2020.6,2020.0,0.24776]
[1770634242744,15.0,2020.6,2020.0,0.3246041]
[1770634243140,0.00356313,2020.8,2020.1,0.08240742]
[1770634243445,15.00356313,2020.8,2020.2,0.08240742]
[1770634243844,15.55660027,2020.8,2020.0,0.33016742]
[1770634244548,0.55303714,2020.7,2019.8,0.0043811]
[1770634244946,14.08912095,2020.5,2019.8,0.0043811]
[1770634245247,0.55303714,2020.4,2019.4,0.24784]
[1770634245451,0.55608511,2020.3,2019.4,0.24784]
[1770634245747,0.55608511,2020.2,2019.4,0.24784]
[1770634245948,0.55608511,2020.1,2019.4,0.24784]
[1770634246247,0.55608511,2020.1,2019.4,0.25381331]
[1770634246447,14.9234873,2020.0,2019.5,0.0765127]
[1770634246747,0.59433572,2020.6,2019.6,6.34407]
[1770634246949,0.59433572,2020.5,2019.6,6.34407]
[1770634247251,0.59433572,2020.5,2019.7,6.57623852]
[1770634249750,14.31509038,2020.5,2020.1,0.51103796]
[1770634250052,0.00356313,2020.8,2020.1,0.51103796]
[1770634250244,0.00356313,2020.8,2019.9,6.09518]
[1770634250245,14.31865351,2020.8,2020.2,0.24774]
[1770634250447,14.31509038,2020.7,2020.2,6.7223947]
[1770634250651,13.80860038,2020.7,2020.2,0.24774]
[1770634250846,0.59433572,2021.7,2020.2,6.34214]
[1770634251049,0.59433572,2021.2,2020.3,6.46128764]
[1770634251547,13.29539038,2021.1,2020.2,6.34208]
[1770634251853,13.29988037,2021.1,2020.4,12.80281764]
[1770634252051,13.29988037,2021.1,2020.4,6.34153]
[1770634252052,0.00448999,2021.1,2020.4,6.34153]
[1770634252249,0.59607372,2021.5,2020.6,6.34091]
[1770634252448,13.29539038,2021.4,2020.6,6.34091]
[1770634252651,6.08479,2023.5,2020.9,6.33999]
[1770634252652,0.59607372,2021.8,2020.9,6.33999]
[1770634253049,12.24857038,2021.7,2021.0,6.39721189]
[1770634253248,12.2544345,2021.7,2021.0,6.4600874]
[1770634253449,0.56608876,2022.2,2021.5,0.05649392]
[1770634253652,0.56608876,2022.2,2021.4,0.24759]
[1770634253947,0.56608876,2022.2,2021.4,0.30408392]
[1770634253948,10.26796078,2022.1,2021.4,0.30408392]
[1770634254255,0.56608876,2022.0,2021.4,0.24759]
[1770634254455,0.5713314,2022.0,2021.4,0.24759]
[1770634254660,0.56608876,2021.6,2021.0,0.00638159]
[1770634255159,0.56608876,2021.1,2020.7,0.24767]
[1770634255351,0.5618686,2021.7,2020.8,0.06493425]
[1770634255551,0.5618686,2021.7,2020.8,6.40614419]
[1770634255758,0.5618686,2021.5,2020.7,0.24767]
[1770634256156,14.09795241,2021.4,2020.7,0.25187658]
[1770634256349,0.5618686,2021.6,2020.9,0.06493425]
[1770634256554,0.5618686,2021.6,2020.8,6.45247873]
[1770634256760,0.5618686,2021.4,2020.7,0.25187658]
[1770634256957,0.5618686,2021.8,2020.8,0.06493425]
[1770634257155,0.5618686,2021.7,2020.9,0.07399314]
[1770634257356,0.5618686,2021.7,2020.7,0.25187658]
[1770634257563,0.55733915,2021.5,2020.7,0.25187658]
[1770634257960,10.26796078,2021.4,2020.7,0.32586972]
[1770634258167,10.26796078,2021.4,2021.0,0.32163314]
[1770634258362,0.55733915,2021.7,2021.0,0.32163314]
[1770634258563,10.18758604,2021.6,2021.0,0.32163314]
[1770634259264,10.18758604,2021.6,2021.2,0.00396666]
[1770634259464,0.59235239,2021.9,2021.3,0.2476]
[1770634259665,9.66532938,2021.8,2021.3,0.2476]
[1770634259866,9.28507379,2022.0,2021.3,6.59976457]
[1770634260069,8.69073807,2022.0,2021.3,6.59976457]
[1770634261159,0.59212912,2021.8,2021.3,6.59976457]
[1770634261365,0.59212912,2021.8,2020.9,0.00441319]
[1770634261564,9.27762455,2021.7,2021.0,0.24764]
[1770634261769,9.27762455,2021.7,2021.1,6.41270236]
[1770634261770,0.59212912,2021.7,2021.1,6.41270236]
[1770634262072,0.59212912,2021.5,2020.7,0.00420658]
[1770634262272,0.59212912,2021.4,2020.7,0.00420658]
[1770634262672,22.22157924,2021.3,2020.7,0.00420658]
[1770634262872,22.22157924,2021.3,2020.7,0.00861977]
[1770634263468,8.68549543,2021.3,2020.8,6.61555006]
[1770634263667,0.59212912,2021.4,2020.8,6.61555006]
[1770634263868,0.59232395,2021.3,2020.8,0.24766]
[1770634264270,14.12840776,2021.2,2020.8,0.24766]
[1770634264571,0.59232395,2021.1,2020.8,0.24766]
[1770634264873,0.59232395,2021.6,2020.8,0.25168354]
[1770634265063,0.59376892,2021.4,2020.9,6.40602468]
[1770634265269,8.68549543,2021.3,2020.9,0.00113361]
[1770634265465,8.68436182,2021.3,2020.9,0.00113361]
[1770634265672,0.59376892,2021.7,2021.0,0.24764]
[1770634266165,13.03939381,2021.5,2021.0,0.24764]
[1770634266366,7.66624182,2021.6,2021.2,0.24762]
[1770634266672,13.06454953,2021.9,2021.2,0.24762]
[1770634266869,7.66624182,2021.8,2021.2,0.24762]
[1770634267070,20.73079135,2021.8,2021.2,0.24762]
[1770634267379,0.59449884,2021.7,2021.2,0.24762]
[1770634267675,0.59449884,2021.5,2021.2,0.24762]
[1770634268177,8.26074066,2021.4,2020.9,0.24765]
[1770634268475,0.59449884,2021.5,2020.9,0.24765]
[1770634269064,0.59449884,2021.1,2020.7,2.95120081]
[1770634269465,20.72995837,2021.1,2020.7,2.95120081]
[1770634269675,0.59350274,2021.6,2020.9,0.24931597]
[1770634270073,12.47021381,2021.3,2020.9,0.24931597]
[1770634270275,11.71899381,2021.3,2020.9,0.24931597]
[1770634270471,10.64786381,2021.3,2020.9,0.24931597]
[1770634270671,10.06500381,2021.3,2020.9,0.24765]
[1770634271068,9.56590381,2021.3,2020.9,0.24765]
[1770634271268,9.00252381,2021.3,2020.9,0.24765]
[1770634271468,7.90600381,2021.3,2020.9,0.24765]
[1770634271667,7.38113381,2021.3,2020.9,3.19464423]
[1770634271870,6.73740381,2021.2,2020.9,3.19464423]
[1770634272069,6.56625585,2021.4,2021.1,0.24763]
[1770634272272,0.59420479,2021.8,2021.1,0.24763]
[1770634272681,0.59420479,2021.6,2021.1,0.24763]
[1770634272871,0.59420479,2021.6,2020.7,2.95120081]
[1770634273075,0.59420479,2021.4,2020.7,0.00420658]
[1770634273471,0.59565202,2021.2,2020.7,0.00420658]
[1770634273874,0.59565202,2021.0,2020.7,0.00420658]
[1770634274379,7.16190787,2021.0,2020.7,0.00420658]
[1770634274577,0.59565202,2020.9,2020.7,0.00420658]
[1770634274769,0.59565202,2020.9,2020.6,0.24769]
[1770634274974,7.16190787,2020.9,2020.6,0.24769]
[1770634275176,7.16190787,2020.9,2020.6,3.19468423]
[1770634275779,7.16190787,2020.9,2020.6,3.19915668]
[1770634277181,0.59555447,2020.8,2020.1,4.98849203]
[1770634277480,0.59555447,2020.8,2020.2,0.81574068]
[1770634277679,6.56625585,2020.7,2020.3,0.56800068]
[1770634277876,0.58501112,2021.0,2020.3,0.56800068]
[1770634278078,0.58501112,2021.0,2020.3,0.00603154]
[1770634278278,0.57157715,2020.8,2020.3,0.00603154]
[1770634278779,6.56625585,2020.7,2020.3,0.57970301]
[1770634278980,0.57157715,2021.0,2020.4,0.82138147]
[1770634279178,6.5617834,2020.9,2020.5,0.57367147]
[1770634279978,6.5617834,2020.9,2020.5,4.99416282]
[1770634280981,7.13336055,2020.9,2020.5,4.42049135]
[1770634281380,0.57157715,2020.8,2020.5,4.42049135]
[1770634282082,7.13336055,2020.7,2020.4,4.66820135]
[1770634282284,0.57157715,2021.6,2020.5,0.55792151]
[1770634282485,0.57157715,2021.4,2020.6,0.24769]
[1770634283590,0.57157715,2021.2,2020.6,0.24769]
[1770634284586,0.57157715,2021.0,2020.6,0.24769]
[1770634284982,6.5617834,2020.9,2020.6,0.80541981]
[1770634285188,6.5617834,2020.9,2020.6,0.24769]
[1770634285384,0.57157715,2021.0,2020.6,0.24769]
[1770634285579,5.95181319,2020.9,2020.6,0.80604671]
[1770634285784,0.57157715,2021.2,2020.7,0.55835671]
[1770634286088,5.98759312,2021.1,2020.6,0.24769]
[1770634286286,0.59413664,2021.1,2020.6,0.24769]
[1770634286683,0.59413664,2020.9,2020.6,0.24769]
[1770634287082,0.59413664,2020.7,2020.6,0.24769]
[1770634287386,0.57157715,2021.5,2020.6,0.24769]
[1770634287579,0.57157715,2021.0,2020.6,0.24769]
[1770634288293,4.38805648,2020.9,2020.7,0.52514137]
[1770634288588,0.57157715,2021.2,2020.7,0.52514137]
[1770634288791,3.86822417,2021.1,2020.7,0.52514137]
[1770634289292,4.43980132,2021.1,2020.7,0.52514137]
[1770634289688,2.83296417,2021.1,2020.9,0.52304183]
[1770634289891,1.75642417,2021.1,2020.9,0.52304183]
[1770634290190,0.57157715,2021.4,2020.8,0.77070183]
[1770634290390,0.57157715,2021.2,2020.8,0.24766]
[1770634290794,0.71931417,2021.1,2020.8,0.24766]
[1770634290991,0.71931417,2021.1,2020.8,0.77070183]
[1770634291195,0.21353417,2021.1,2020.8,0.77070183]
[1770634291598,0.57157715,2021.0,2020.8,0.24766]
[1770634291794,0.57157715,2021.0,2020.7,4.42049135]
[1770634291998,0.57157715,2021.0,2020.6,4.42049135]
[1770634292200,0.57157715,2020.8,2020.6,4.42049135]
[1770634292999,0.57157715,2021.0,2020.6,4.42049135]
[1770634293298,0.57157715,2021.5,2020.6,5.00056557]
[1770634293501,0.57157715,2021.5,2020.8,0.58007422]
[1770634293798,0.78511132,2021.4,2020.8,0.58007422]
[1770634293999,0.78511132,2021.3,2020.8,0.58007422]
[1770634294192,0.57157715,2021.3,2020.8,0.58007422]
[1770634294395,0.57157715,2021.1,2020.7,4.66817135]
[1770634294593,0.57157715,2021.1,2020.7,0.24768]
[1770634295994,0.57157715,2020.9,2020.5,4.42049135]
[1770634296190,0.57157715,2020.9,2020.5,5.00056557]
[1770634297100,0.57157715,2020.9,2020.6,4.42049135]
[1770634297501,0.57157715,2021.6,2020.9,0.58007422]
[1770634297698,0.57157715,2021.6,2020.9,5.02298981]
[1770634297899,0.57157715,2021.6,2020.9,0.58007422]
[1770634298197,0.57157715,2021.6,2020.8,4.69057559]
[1770634300198,0.57157715,2021.6,2020.8,0.24766]
[1770634300398,0.57157715,2021.6,2021.0,0.82771422]
[1770634301200,0.57157715,2021.8,2021.2,0.82769422]
[1770634301794,0.57157715,2021.8,2021.3,0.58007422]
[1770634302403,0.57157715,2021.8,2021.2,0.24762]
[1770634304209,0.57157715,2021.8,2021.2,0.82769422]
[1770634305009,0.57157715,2021.8,2021.3,0.58007422]
[1770634305209,0.59347597,2022.0,2021.3,0.58007422]
[1770634305509,0.59347597,2022.0,2021.5,0.54554537]
[1770634305710,0.58823334,2022.0,2021.5,0.54554537]
[1770634307711,0.58823334,2022.0,2021.4,0.24759]
[1770634308816,1e-08,2022.0,2021.4,0.24759]
[1770634310815,1e-08,2022.0,2021.5,0.54554537]
[1770634311420,1e-08,2022.0,2021.7,0.54554537]
[1770634312418,1e-08,2022.0,2021.9,0.54554537]
[1770634312619,1e-08,2022.0,2021.9,0.55153023]
[1770634313017,0.58823333,2023.1,2022.3,0.54554537]
[1770634313912,0.59225492,2023.1,2022.3,0.54554537]
[1770634314321,0.59225492,2023.1,2022.3,0.82318838]
[1770634315219,0.59225492,2023.1,2021.9,4.97848432]
[1770634315419,0.59225492,2023.1,2021.9,0.00598486]
[1770634315615,0.58823333,2023.0,2021.9,0.00598486]
[1770634315813,0.83562333,2023.0,2021.9,0.00598486]
[1770634316012,0.58823333,2022.9,2021.9,0.00598486]
[1770634317818,0.58823333,2022.9,2021.6,1.08405959]
[1770634318010,0.58823333,2022.9,2021.6,0.79310537]
[1770634318820,0.58823333,2022.9,2021.7,0.54554537]
[1770634319121,0.58823333,2022.9,2021.6,0.5362489]
[1770634319420,0.58823333,2022.9,2021.6,1.08179427]
[1770634320019,0.58823333,2022.9,2021.7,0.54554537]
[1770634320219,0.58823333,2022.9,2021.9,0.54554537]
[1770634320611,0.58823333,2022.9,2021.6,0.2886889]
[1770634320810,0.24739,2023.0,2021.7,0.54554537]
[1770634320811,0.58823333,2022.8,2021.7,0.54554537]
[1770634321010,0.58823333,2022.8,2021.8,0.54554537]
[1770634321424,0.58823333,2022.8,2022.0,0.54554537]
[1770634322015,0.58823333,2022.8,2021.9,0.24753]
[1770634322322,0.58823333,2022.8,2022.0,0.54554537]
[1770634323310,0.58823333,2022.9,2022.0,0.54554537]
[1770634324716,0.58823333,2022.9,2022.2,0.54554537]
[1770634326411,0.58823333,2022.9,2022.0,0.54554537]
[1770634326719,0.58823333,2022.9,2021.8,0.54554537]
[1770634326923,0.58823333,2022.9,2021.7,0.54554537]
[1770634328420,0.58823333,2022.9,2022.2,0.24749]
[1770634328725,0.58823333,2022.9,2022.2,0.79303537]
[1770634328919,0.58823333,2022.9,2022.3,0.54554537]
[1770634329123,0.58823333,2022.9,2022.0,0.54554537]
[1770634329717,0.58823333,2022.9,2022.2,0.54554537]
[1770634332328,0.58823333,2022.9,2022.1,0.24751]
[1770634333030,0.58823333,2022.9,2022.1,0.79305537]
[1770634333331,0.58823333,2022.9,2022.2,0.54554537]
[1770634333524,0.59225492,2023.1,2022.2,0.54554537]
[1770634334825,0.59225492,2023.1,2022.4,0.54554537]
[1770634334826,0.00402159,2023.1,2022.4,0.54554537]
[1770634335222,13.991,2023.7,2022.6,0.59105682]
[1770634335418,0.56511894,2023.5,2022.8,0.59105682]
[1770634336230,0.56938119,2023.5,2022.8,0.59105682]
[1770634337018,34.89881033,2024.0,2022.8,0.59105682]
[1770634337219,0.56511894,2023.9,2023.2,0.59105682]
[1770634337420,0.56511894,2023.9,2023.3,0.24735]
[1770634337625,0.56511894,2023.9,2022.8,5.89398846]
[1770634337626,0.56511894,2023.9,2022.7,3.1998545]
[1770634337824,0.54339358,2023.7,2022.7,0.24743]
[1770634338119,0.54703394,2023.7,2022.7,0.00581555]
[1770634338924,0.54703394,2023.7,2022.8,0.57884577]
[1770634339126,0.00364036,2023.7,2023.4,0.57884577]
[1770634339326,0.54339358,2024.1,2023.4,0.57884577]
[1770634340229,0.54970608,2024.1,2023.4,0.57884577]
[1770634340832,0.54970608,2024.1,2023.3,0.82620577]
[1770634341235,0.0063125,2024.1,2023.6,0.57884577]
[1770634342433,0.54970608,2024.1,2023.5,0.24733]
[1770634342640,0.54970608,2024.1,2023.3,0.57884577]
[1770634343335,0.54970608,2024.1,2023.1,0.57884577]
[1770634344944,0.54970608,2024.1,2023.3,0.57884577]
[1770634346147,0.0063125,2024.1,2023.3,0.57884577]
[1770634346643,0.54970608,2024.1,2023.3,0.57884577]
[1770634346847,0.54970608,2024.1,2023.2,0.24737]
[1770634347146,0.54970608,2024.1,2022.9,0.57884577]
[1770634348450,0.54970608,2024.1,2022.7,0.58466132]
[1770634351149,0.54970608,2024.1,2022.9,0.57884577]
[1770634351449,0.54339358,2023.9,2022.9,0.57884577]
[1770634353651,31.968,2024.0,2023.1,0.57884577]
[1770634353849,32.51139358,2024.0,2023.1,0.57884577]
[1770634354045,0.54339358,2023.9,2023.1,0.57884577]
[1770634355256,0.54339358,2023.9,2023.0,0.82623577]
[1770634355453,0.54339358,2023.9,2022.8,0.57884577]
[1770634355852,0.54339358,2023.9,2022.7,0.58466132]
[1770634356557,0.54339358,2023.9,2022.7,0.00581555]
[1770634356759,0.54339358,2023.9,2022.7,0.58466132]
[1770634358361,0.54339358,2023.8,2022.7,0.58466132]
[1770634360166,0.54339358,2023.6,2022.7,0.58466132]
[1770634360569,0.54339358,2023.5,2022.4,0.57884577]
[1770634361567,0.54339358,2023.5,2022.4,0.58255508]
[1770634362256,0.54339358,2023.3,2022.4,0.58255508]
[1770634363366,0.54339358,2023.3,2022.5,0.57884577]
[1770634369070,0.54339358,2023.3,2022.4,0.00370931]
[1770634369468,0.54339358,2023.3,2022.4,0.5688135]
[1770634370871,43.71681033,2023.7,2022.8,0.56510419]
[1770634370872,0.57437721,2023.6,2022.8,0.56510419]
[1770634371072,32.54737721,2023.6,2022.8,0.56510419]
[1770634371370,31.973,2023.6,2023.0,0.56510419]
[1770634371566,31.973,2023.6,2023.2,0.56510419]
[1770634371567,31.47178,2023.6,2023.2,0.56510419]
[1770634374064,0.57437721,2023.5,2022.8,0.56510419]
[1770634375070,31.47178,2023.6,2022.8,0.56510419]